bitfinex/quotes_ETHUSD_20240713
["timestamp","ask_amount","ask_price","bid_price","bid_amount"]
[1720884124006,2.32146772,3164.4,3164.3,0.799]
[1720884125926,0.27420333,3164.8,3164.3,0.799]
[1720884126108,2.32141674,3164.4,3164.3,0.799]
[1720884126308,2.32141674,3164.5,3164.3,0.799]
[1720884128813,2.32141674,3164.6,3164.4,2.4337]
[1720884129010,2.32141674,3164.7,3164.6,2.4337]
[1720884129210,3.66515344,3165.5,3164.6,3.2327]
[1720884129211,2.32093275,3164.9,3164.6,3.2327]
[1720884129509,3.0,3165.4,3164.8,0.799]
[1720884129510,2.32093275,3165.0,3164.8,0.799]
[1720884129728,2.74160181,3165.2,3164.9,0.799]
[1720884129930,2.320587,3165.0,3164.6,2.4337]
[1720884130134,2.320587,3165.0,3164.9,0.799]
[1720884131068,2.74160181,3165.2,3164.7,0.799]
[1720884131213,2.32035885,3164.9,3164.7,0.799]
[1720884131415,2.32035885,3165.0,3164.7,0.799]
[1720884132231,2.32035885,3164.8,3164.7,0.799]
[1720884132436,2.32035885,3164.9,3164.7,0.799]
[1720884132945,2.74160181,3165.2,3164.7,0.799]
[1720884132946,2.32035885,3165.0,3164.7,0.799]
[1720884133115,2.32035885,3164.9,3164.7,0.799]
[1720884133315,2.32035885,3165.0,3164.7,0.799]
[1720884134841,2.32035885,3164.9,3164.7,0.799]
[1720884135520,0.3,3165.3,3164.7,0.799]
[1720884135726,2.31946775,3165.0,3164.7,0.799]
[1720884135935,2.31946775,3164.9,3164.7,0.799]
[1720884136151,2.31949357,3164.9,3164.7,0.799]
[1720884138048,2.31949357,3165.0,3164.7,1.12227]
[1720884138246,2.31949357,3165.1,3165.0,0.799]
[1720884138444,2.31949357,3165.2,3165.0,0.799]
[1720884138852,2.31885118,3165.2,3165.0,0.799]
[1720884139047,2.31885229,3165.2,3165.0,0.799]
[1720884141246,5.73914427,3165.5,3164.8,3.2428]
[1720884141247,2.31885229,3165.1,3164.8,3.2428]
[1720884142123,2.31839315,3165.0,3164.8,3.2428]
[1720884143536,2.31839315,3165.1,3164.8,3.2428]
[1720884143778,2.31839315,3165.0,3164.8,3.2428]
[1720884144138,2.31839315,3165.1,3164.8,3.2428]
[1720884144970,2.31839315,3165.0,3164.8,3.2428]
[1720884145367,2.31839315,3165.1,3164.8,3.2428]
[1720884145768,2.31839315,3165.2,3164.8,3.2428]
[1720884146137,2.31839315,3165.1,3164.8,3.2428]
[1720884148858,2.31856697,3165.1,3164.8,3.2428]
[1720884149456,2.31866897,3165.1,3164.9,2.4438]
[1720884151271,2.31866897,3165.1,3165.0,0.799]
[1720884151460,2.31866897,3165.2,3165.0,3.2428]
[1720884152060,2.3190651,3165.2,3165.0,3.2428]
[1720884152293,2.3190651,3165.1,3165.0,3.2428]
[1720884152588,2.31933517,3165.2,3165.0,3.2428]
[1720884153179,2.31933517,3165.1,3165.0,3.2428]
[1720884154108,2.31933517,3165.1,3165.0,2.4438]
[1720884155515,3.29778732,3165.7,3165.0,2.4438]
[1720884155717,2.32027204,3165.1,3165.0,2.4438]
[1720884156578,2.32027204,3165.1,3165.0,3.2428]
[1720884157708,2.32090918,3165.1,3165.0,3.2428]
[1720884158807,2.32125147,3165.2,3165.0,3.2428]
[1720884159212,2.32125147,3165.3,3165.1,2.4498]
[1720884159512,2.32125147,3165.4,3165.2,3.2488]
[1720884159818,2.32125147,3165.5,3165.4,2.4498]
[1720884160181,2.7419783,3165.7,3165.4,2.4498]
[1720884160585,2.7419783,3165.7,3165.5,0.799]
[1720884160909,2.7419783,3165.8,3165.6,2.4498]
[1720884161115,2.7419783,3165.7,3165.6,2.4498]
[1720884162078,2.74281732,3165.7,3165.6,2.4498]
[1720884162480,3.29778732,3166.0,3165.6,2.4498]
[1720884162803,2.74252632,3165.8,3165.6,2.4498]
[1720884163005,2.74252632,3165.8,3165.4,2.4498]
[1720884163309,2.32167316,3165.5,3165.4,2.4498]
[1720884164892,2.32167316,3165.6,3165.4,2.4498]
[1720884165115,2.32167316,3165.5,3165.4,2.4498]
[1720884165319,2.32103177,3165.5,3165.4,3.49378]
[1720884165814,2.32103177,3165.6,3165.4,3.49378]
[1720884167319,2.32103177,3165.6,3165.4,1.04398]
[1720884167524,2.32103177,3165.8,3165.5,2.4498]
[1720884167711,2.32103177,3165.8,3165.7,0.799]
[1720884168412,2.32103177,3165.9,3165.7,3.2488]
[1720884168588,0.1131819,3166.4,3165.3,2.21146]
[1720884168589,2.3197027,3166.0,3165.8,0.799]
[1720884168798,2.74019265,3166.2,3165.9,2.4498]
[1720884170731,2.31944298,3166.0,3165.9,2.4498]
[1720884171037,2.31944926,3166.0,3165.9,2.4498]
[1720884171335,2.74019265,3166.2,3165.9,2.4498]
[1720884171836,0.1131819,3166.4,3165.9,2.4498]
[1720884172138,2.3193841,3166.0,3165.9,2.4498]
[1720884172503,2.73979718,3166.2,3165.9,2.4498]
[1720884172701,2.31933045,3166.0,3165.9,2.4498]
[1720884173730,2.31927279,3166.0,3165.9,2.4498]
[1720884174548,2.31927279,3166.0,3165.9,2.77468]
[1720884175140,0.1131819,3166.4,3165.9,2.77468]
[1720884175445,2.43212223,3166.4,3166.3,2.4655]
[1720884175607,0.1131819,3166.4,3166.3,2.4655]
[1720884175811,0.1131819,3166.4,3166.3,2.79195]
[1720884176261,0.1131819,3166.4,3166.3,2.4655]
[1720884176262,2.4319629,3166.4,3166.3,2.4655]
[1720884177607,2.33695705,3166.4,3166.3,2.4655]
[1720884178211,2.33546831,3166.4,3166.3,2.4655]
[1720884178652,2.33546831,3166.4,3166.0,2.4655]
[1720884178653,2.28546831,3166.4,3166.0,2.4655]
[1720884179239,2.28546831,3166.4,3166.0,3.2645]
[1720884179556,2.73730149,3166.8,3166.0,3.2645]
[1720884179711,2.73730149,3166.8,3166.0,3.59095]
[1720884179911,2.68730149,3166.8,3166.2,0.799]
[1720884180117,2.68730149,3166.8,3166.3,2.4655]
[1720884180360,3.0,3167.2,3166.3,2.4655]
[1720884180510,0.57977873,3167.1,3166.3,2.4655]
[1720884180908,3.87756605,3167.1,3166.4,0.799]
[1720884181114,3.0,3167.0,3166.3,2.4655]
[1720884181325,3.87756605,3167.1,3166.3,2.4655]
[1720884181645,3.0,3167.0,3166.3,2.4655]
[1720884181833,0.35797787,3166.9,3166.3,2.4655]
[1720884182047,3.57977873,3167.1,3166.3,2.4655]
[1720884182413,2.3797,3167.0,3166.3,2.4655]
[1720884182715,3.0,3167.0,3166.3,2.4655]
[1720884183215,3.57977873,3167.1,3166.3,2.4655]
[1720884183439,0.68775661,3167.0,3166.3,2.4655]
[1720884183813,2.31589202,3166.6,3166.3,2.4655]
[1720884184010,2.31589202,3166.6,3166.4,0.799]
[1720884184351,2.31588825,3166.8,3166.5,2.4655]
[1720884184645,0.23158883,3166.7,3166.5,2.4655]
[1720884184849,2.31536069,3166.9,3166.5,2.4655]
[1720884187217,2.31451758,3166.9,3166.5,2.4655]
[1720884187617,2.31451758,3167.0,3166.5,2.4655]
[1720884188433,2.31451758,3167.1,3166.5,2.4655]
[1720884188754,2.31451758,3166.9,3166.5,2.4655]
[1720884189851,2.31451758,3167.0,3166.5,2.4655]
[1720884190958,2.31399688,3166.9,3166.5,2.4655]
[1720884192774,2.31399688,3166.9,3166.2,2.4356]
[1720884192971,0.45692969,3166.8,3166.2,2.4356]
[1720884193478,2.77092657,3166.8,3166.2,2.4356]
[1720884194172,2.77130906,3166.8,3166.2,2.4356]
[1720884194343,2.31437937,3166.8,3166.2,2.4356]
[1720884194545,0.799,3166.9,3166.2,2.4356]
[1720884194745,2.31460892,3166.8,3166.2,2.4356]
[1720884197274,0.799,3166.9,3166.2,2.4356]
[1720884197588,3.11447203,3166.7,3166.2,2.4356]
[1720884197758,0.06882335,3166.6,3166.2,2.4356]
[1720884197955,2.38429538,3166.6,3166.2,2.4356]
[1720884198152,3.11447203,3166.5,3165.9,2.4356]
[1720884198356,2.31547203,3166.4,3165.9,2.4356]
[1720884198556,2.31547203,3166.3,3165.9,2.4356]
[1720884199778,3.11447203,3166.3,3165.9,2.4356]
[1720884200807,3.11612774,3166.3,3165.8,7.41]
[1720884201371,2.31712774,3166.2,3165.8,7.41]
[1720884201912,2.31712774,3166.2,3165.7,2.4356]
[1720884203714,2.31712774,3166.1,3165.7,2.4356]
[1720884204142,2.31885405,3166.1,3165.7,2.4356]
[1720884207426,0.799,3166.3,3165.7,2.4356]
[1720884207597,2.3204301,3166.0,3165.7,2.4356]
[1720884207804,2.3204301,3166.0,3165.7,2.97916]
[1720884208124,2.32043078,3166.0,3165.7,2.97916]
[1720884208833,2.32043078,3166.0,3165.4,9.8456]
[1720884209036,2.32043078,3165.7,3165.4,9.8456]
[1720884209332,2.32043078,3165.5,3165.4,2.4356]
[1720884209624,2.32043078,3165.5,3165.0,2.4356]
[1720884210504,2.32108314,3165.5,3165.0,2.4356]
[1720884210674,2.32108314,3165.5,3165.0,2.75906]
[1720884213281,2.32108314,3165.6,3165.2,2.4881]
[1720884214023,6.35208732,3166.2,3165.2,2.4881]
[1720884214194,2.32066219,3165.6,3165.2,2.4881]
[1720884214603,2.32066219,3165.6,3165.3,0.799]
[1720884214824,2.32066219,3165.7,3165.5,2.4881]
[1720884215705,2.32066219,3165.8,3165.5,2.4881]
[1720884217031,2.32066219,3165.7,3165.5,2.4881]
[1720884217226,3.29778732,3166.3,3165.5,3.2871]
[1720884217394,2.32023956,3165.7,3165.5,3.648681]
[1720884217928,2.32016466,3165.7,3165.5,1.160581]
[1720884218118,2.32016466,3165.7,3165.6,2.4881]
[1720884219333,2.32016466,3165.8,3165.6,2.4881]
[1720884220420,2.7406945,3166.1,3165.6,2.4881]
[1720884220731,2.31988346,3165.8,3165.6,2.4881]
[1720884224139,2.31967095,3165.8,3165.6,2.4881]
[1720884225618,2.31967095,3166.0,3165.6,2.81681]
[1720884226018,2.31967095,3166.1,3165.6,2.81681]
[1720884227340,4.09678732,3166.7,3165.6,2.81681]
[1720884227552,2.31955798,3166.1,3165.6,2.81681]
[1720884227851,4.09678732,3166.7,3165.6,2.81681]
[1720884227852,0.799,3166.5,3165.7,0.361581]
[1720884228013,2.31952055,3166.1,3165.6,2.4881]
[1720884228954,2.31952055,3166.1,3165.6,2.551273]
[1720884229154,2.31952055,3166.1,3165.7,0.799]
[1720884229476,2.31952055,3166.2,3165.9,0.799]
[1720884229638,2.31952055,3166.2,3166.0,2.4881]
[1720884230040,1.46530044,3166.9,3166.0,2.4881]
[1720884230041,2.31952055,3166.1,3166.0,2.4881]
[1720884230659,2.31971168,3166.1,3166.0,2.4881]
[1720884230859,2.31968865,3166.1,3166.0,2.4881]
[1720884232373,2.31968865,3166.2,3166.0,2.74322686]
[1720884232686,2.31968865,3166.2,3166.0,2.4881]
[1720884233173,2.31968865,3166.3,3166.0,2.4881]
[1720884233362,2.31968865,3166.2,3166.0,2.4881]
[1720884233990,3.29778732,3166.8,3166.0,2.4881]
[1720884234196,2.32006996,3166.3,3166.0,2.4881]
[1720884234496,2.32006996,3166.2,3166.0,2.4881]
[1720884236703,2.32006996,3166.3,3166.0,2.4881]
[1720884237258,2.32090744,3166.3,3166.0,2.4881]
[1720884237458,2.32090744,3166.3,3166.1,0.32871]
[1720884237679,3.29778732,3166.9,3166.1,0.32871]
[1720884237858,3.29778732,3166.9,3166.0,2.4881]
[1720884237859,2.32085931,3166.3,3166.0,2.4881]
[1720884239600,2.32085931,3166.2,3166.0,2.4881]
[1720884240475,0.799,3166.7,3166.0,2.4881]
[1720884240672,2.32131446,3166.2,3165.6,0.799]
[1720884241000,2.32131446,3166.2,3165.7,2.4475]
[1720884241292,2.32131446,3166.1,3165.7,2.4475]
[1720884241502,2.32131446,3166.2,3165.7,2.4475]
[1720884242186,2.32131446,3166.2,3165.7,3.654383]
[1720884242386,2.32131446,3166.1,3165.7,3.654383]
[1720884242697,2.32131446,3166.2,3165.7,3.654383]
[1720884243197,2.32162436,3166.2,3165.7,2.4475]
[1720884243493,2.32162436,3166.1,3165.7,2.4475]
[1720884245494,0.06882335,3166.0,3165.7,2.4475]
[1720884245694,2.74241877,3165.9,3165.5,7.41]
[1720884245893,2.32214414,3165.6,3165.5,7.41]
[1720884246084,2.74241877,3165.8,3165.5,7.41]
[1720884246301,0.35414188,3165.9,3165.5,7.41]
[1720884246607,2.74299511,3165.7,3165.5,7.41]
[1720884246902,2.74307403,3165.7,3165.5,7.41]
[1720884248176,2.32184222,3165.6,3165.5,7.41]
[1720884248504,2.32177337,3165.6,3165.5,7.41]
[1720884249479,2.32177337,3165.6,3165.4,2.4475]
[1720884249815,2.32168997,3165.6,3165.4,2.4475]
[1720884250996,2.32168997,3165.5,3165.4,2.4475]
[1720884255197,2.32168997,3165.6,3165.4,2.4475]
[1720884255407,2.32168997,3165.5,3165.4,2.4475]
[1720884256322,2.32168997,3165.6,3165.4,2.4475]
[1720884256691,4.09678732,3166.2,3165.4,2.4475]
[1720884256898,2.3214587,3165.6,3165.4,2.4475]
[1720884257098,2.3214587,3165.5,3165.4,2.4475]
[1720884259315,0.06882335,3166.0,3165.4,2.4475]
[1720884259708,3.94367605,3166.1,3165.4,2.4475]
[1720884259709,2.32163623,3165.5,3165.4,2.4475]
[1720884261523,2.32163623,3165.5,3165.2,2.369]
[1720884263243,2.32147551,3165.5,3165.2,2.369]
[1720884264028,2.32147551,3165.6,3165.2,2.369]
[1720884266235,2.32147551,3165.6,3165.3,0.3168]
[1720884266559,2.32120247,3165.6,3165.3,0.3168]
[1720884266926,2.32122115,3165.6,3165.3,0.3168]
[1720884267740,2.32122115,3165.6,3165.4,2.369]
[1720884268138,2.32122115,3165.7,3165.4,2.369]
[1720884269232,3.29778732,3166.2,3165.4,2.369]
[1720884269233,2.32122115,3165.6,3165.4,2.369]
[1720884269463,2.32122115,3165.7,3165.4,2.71748]
[1720884270360,2.32122115,3165.8,3165.6,2.369]
[1720884272034,0.799,3166.5,3165.6,2.369]
[1720884272035,2.32122115,3165.7,3165.6,2.369]
[1720884272660,2.32122115,3165.7,3165.3,2.3885]
[1720884272830,2.32122803,3165.6,3165.3,2.3885]
[1720884273031,2.32122113,3165.6,3165.3,2.3885]
[1720884273561,2.32122113,3165.7,3165.3,2.3885]
[1720884274332,2.32122113,3165.6,3165.3,2.3885]
[1720884276475,2.3212369,3165.6,3165.3,2.3885]
[1720884277287,3.1116,3166.1,3165.3,2.3885]
[1720884277288,2.3212369,3165.7,3165.3,2.3885]
[1720884277447,2.3212369,3165.6,3165.3,2.3885]
[1720884277832,2.3212369,3165.7,3165.3,2.3885]
[1720884278033,2.32118947,3165.7,3165.3,2.3885]
[1720884278228,2.32118947,3165.6,3165.3,2.3885]
[1720884278561,2.32118947,3165.7,3165.3,2.70725]
[1720884278959,2.32118947,3165.6,3165.3,2.70725]
[1720884279909,2.32152485,3165.6,3165.3,2.3885]
[1720884280216,2.32156638,3165.6,3165.3,2.3885]
[1720884280373,2.74235029,3165.9,3165.3,2.3885]
[1720884280374,2.32156638,3165.5,3165.3,2.3885]
[1720884281403,2.32156638,3165.6,3165.3,2.3885]
[1720884282868,2.3126,3166.1,3165.3,2.3885]
[1720884283068,2.32217881,3165.6,3165.3,2.3885]
[1720884283299,2.32217881,3165.5,3165.3,2.3885]
[1720884286268,2.32217881,3165.4,3165.3,2.3885]
[1720884286473,2.32362057,3165.4,3165.3,2.3885]
[1720884288561,2.74477679,3165.6,3165.3,2.3885]
[1720884288757,2.32439968,3165.4,3165.3,2.3885]
[1720884288978,2.74477679,3165.6,3165.3,2.3885]
[1720884289778,2.74635277,3165.6,3165.3,2.3885]
[1720884290181,2.74635229,3165.6,3165.3,2.3885]
[1720884291069,2.74635229,3165.5,3165.3,2.3885]
[1720884293196,2.74822578,3165.5,3165.3,2.3885]
[1720884302295,2.74811328,3165.5,3165.3,2.3885]
[1720884302668,2.74828397,3165.5,3165.3,2.3885]
[1720884303802,2.74828397,3165.6,3165.3,2.70725]
[1720884303988,2.3333,3166.4,3165.3,2.70725]
[1720884303989,2.32634695,3165.4,3165.3,2.3885]
[1720884305294,2.32621262,3165.4,3165.3,2.3885]
[1720884305518,3.29778732,3166.0,3165.3,2.3885]
[1720884305690,2.74783639,3165.6,3165.3,2.3885]
[1720884306280,2.32626742,3165.4,3165.3,2.3885]
[1720884308206,6.66331343,3166.8,3165.3,2.3885]
[1720884308207,2.32626742,3165.5,3165.3,2.3885]
[1720884308402,2.32626742,3165.5,3165.4,0.799]
[1720884308604,2.32626742,3165.6,3165.5,2.4663]
[1720884308811,2.32587119,3165.6,3165.5,3.2653]
[1720884309010,2.74746407,3165.9,3165.6,2.4663]
[1720884310196,2.32534091,3165.7,3165.6,2.4663]
[1720884310624,2.74746407,3165.9,3165.6,2.4663]
[1720884310794,3.1323,3166.6,3165.6,2.4663]
[1720884310795,2.32532109,3165.7,3165.6,2.4663]
[1720884312111,3.29778732,3166.3,3165.6,2.4663]
[1720884312297,2.32507217,3165.7,3165.6,2.4663]
[1720884312693,2.3248965,3165.7,3165.6,2.4663]
[1720884313193,2.74628399,3165.9,3165.6,2.4663]
[1720884313531,2.32482969,3165.7,3165.6,2.4663]
[1720884313708,2.74628399,3165.9,3165.6,2.4663]
[1720884314308,2.32471754,3165.7,3165.6,2.4663]
[1720884314909,2.74628399,3165.9,3165.6,2.4663]
[1720884315510,2.74600834,3165.9,3165.6,2.4663]
[1720884316231,2.74600834,3165.9,3165.3,9.8984]
[1720884316232,2.74600834,3165.8,3165.3,9.8984]
[1720884316430,2.32483852,3165.4,3165.3,9.8984]
[1720884316634,2.74600834,3165.6,3165.3,9.8984]
[1720884316827,2.74600834,3165.6,3165.3,2.4884]
[1720884318534,2.74600834,3165.5,3165.1,0.00504068]
[1720884318705,2.3250341,3165.3,3165.1,2.49344068]
[1720884322126,2.32495091,3165.3,3165.1,2.49344068]
[1720884322441,3.57238815,3165.9,3165.1,2.49344068]
[1720884322630,2.32491042,3165.3,3165.1,2.49344068]
[1720884325552,2.32485085,3165.3,3165.1,2.49344068]
[1720884327723,2.32485085,3165.3,3165.1,0.00504068]
[1720884328747,2.32482683,3165.3,3165.1,0.00504068]
[1720884331992,2.3841,3165.7,3165.1,0.00504068]
[1720884332129,2.32473058,3165.3,3165.1,0.00504068]
[1720884333239,2.32473058,3165.3,3165.1,0.80404068]
[1720884333439,2.4471,3166.0,3165.2,2.3315]
[1720884333440,2.32473058,3165.4,3165.2,2.3315]
[1720884333750,2.32473058,3165.6,3165.4,2.3315]
[1720884333947,2.32473058,3165.6,3165.5,0.799]
[1720884334900,2.32473058,3165.9,3165.6,2.3315]
[1720884335106,2.32473058,3166.0,3165.8,0.799]
[1720884335243,2.32473058,3166.0,3165.9,3.1305]
[1720884335438,2.32473058,3166.1,3165.9,3.44986686]
[1720884335974,2.32334296,3166.1,3165.9,3.44986686]
[1720884336658,2.32334296,3166.1,3165.9,2.3315]
[1720884336861,2.32334296,3166.0,3165.7,0.799]
[1720884337048,2.32334296,3166.0,3165.6,2.3315]
[1720884337637,2.32334296,3165.9,3165.6,2.3315]
[1720884337843,2.32334296,3166.0,3165.6,2.3315]
[1720884338066,2.32334296,3166.0,3165.7,1.41205]
[1720884338771,2.32334296,3166.0,3165.9,3.1305]
[1720884342279,3.29778732,3166.6,3165.9,3.1305]
[1720884342787,0.799,3166.9,3165.9,3.1305]
[1720884346379,0.799,3166.9,3165.9,2.3315]
[1720884346696,0.3799,3166.8,3165.9,2.3315]
[1720884351812,0.3799,3166.8,3165.9,3.1305]
[1720884352011,3.9471,3167.7,3166.6,2.3315]
[1720884352339,2.31941818,3166.8,3166.6,2.3315]
[1720884352619,2.31941818,3166.9,3166.6,2.3315]
[1720884353319,2.31941818,3167.0,3166.6,2.3315]
[1720884353684,2.31941818,3167.0,3166.7,0.799]
[1720884353886,2.31846148,3167.0,3166.7,0.799]
[1720884354316,2.31846148,3167.1,3166.7,0.799]
[1720884354930,2.31846148,3167.2,3166.7,0.799]
[1720884355124,2.31846148,3167.1,3166.7,0.799]
[1720884355522,2.31846148,3167.2,3166.8,2.2842]
[1720884357257,2.3157891,3167.3,3166.8,2.2842]
[1720884357761,2.31526981,3167.3,3166.8,2.2842]
[1720884358316,2.84679679,3167.3,3166.8,2.2842]
[1720884358714,2.31526981,3167.2,3166.4,2.2842]
[1720884359453,2.31526981,3167.2,3166.5,0.06315761]
[1720884359626,2.31526981,3167.3,3166.4,3.0832]
[1720884360549,0.799,3167.4,3166.4,3.0832]
[1720884360550,2.31432985,3167.2,3166.4,3.0832]
[1720884360945,0.799,3166.6,3166.1,7.41]
[1720884361368,3.11332985,3166.8,3166.1,7.41]
[1720884361862,2.31432985,3166.7,3166.1,7.41]
[1720884362273,2.3831532,3166.7,3166.1,7.41]
[1720884362568,3.11332985,3166.6,3166.0,2.2842]
[1720884362950,2.63305624,3166.7,3166.0,2.2842]
[1720884363269,2.31484092,3166.8,3166.0,2.2842]
[1720884363476,2.31484092,3166.7,3166.0,2.2842]
[1720884363850,2.31484092,3166.7,3166.6,0.00504068]
[1720884364661,2.73440584,3166.9,3166.6,0.00504068]
[1720884365158,2.31496112,3166.8,3166.6,0.00504068]
[1720884365340,0.31827845,3166.8,3166.6,0.00504068]
[1720884365536,2.73440584,3166.9,3166.6,0.00504068]
[1720884365775,2.31501958,3166.8,3166.6,0.00504068]
[1720884366238,3.799,3167.1,3166.6,0.00504068]
[1720884366435,2.31511225,3166.8,3166.6,2.28924068]
[1720884366700,2.31511225,3166.9,3166.6,2.28924068]
[1720884366977,2.31511225,3167.0,3166.6,2.51816475]
[1720884367558,2.31511225,3167.1,3166.6,2.51816475]
[1720884367741,2.31511225,3167.0,3166.6,2.51816475]
[1720884369461,2.31528975,3167.0,3166.6,2.51816475]
[1720884369867,2.31524831,3167.0,3166.6,2.51816475]
[1720884370499,0.18971239,3166.9,3166.6,2.51816475]
[1720884370718,0.18971239,3166.8,3166.6,2.51816475]
[1720884370860,2.31524831,3167.1,3166.7,0.25181647]
[1720884371221,0.18968741,3167.0,3166.6,2.28924068]
[1720884371511,0.18968741,3166.9,3166.6,2.28924068]
[1720884371660,0.18968741,3166.8,3166.6,2.28924068]
[1720884371995,2.31524831,3167.1,3166.7,0.30882407]
[1720884372315,2.50491378,3167.0,3166.7,0.30882407]
[1720884372460,0.18966547,3166.9,3166.7,0.30882407]
[1720884372658,0.18965712,3166.8,3166.7,0.30882407]
[1720884374787,0.18965712,3166.8,3166.7,2.4364]
[1720884375569,0.18965712,3166.8,3166.7,3.2354]
[1720884375964,3.799,3167.6,3166.7,3.2354]
[1720884376170,2.31702931,3167.1,3166.7,3.2354]
[1720884376403,0.1896134,3167.0,3166.7,3.2354]
[1720884376601,0.1896134,3166.9,3166.8,0.32404407]
[1720884379498,2.50956461,3166.9,3166.8,0.32404407]
[1720884379798,0.18958981,3166.9,3166.8,0.32404407]
[1720884380183,2.50956461,3166.9,3166.8,0.32404407]
[1720884380706,0.18958981,3166.9,3166.8,2.76044407]
[1720884382685,6.28777528,3167.6,3166.8,2.76044407]
[1720884382884,2.32054347,3167.0,3166.9,0.35594441]
[1720884383093,6.28777528,3167.6,3166.9,0.35594441]
[1720884383270,6.28777528,3167.6,3167.1,2.4364]
[1720884383271,2.74177309,3167.3,3167.1,2.4364]
[1720884383470,2.32088467,3167.4,3167.3,2.4364]
[1720884383704,0.18935135,3167.4,3167.3,2.75994]
[1720884384609,0.18935135,3167.4,3167.3,2.82307861]
[1720884385214,0.18935135,3167.4,3167.3,2.75994]
[1720884385774,2.32088467,3167.5,3167.3,2.75994]
[1720884385987,3.28777528,3168.1,3167.3,2.75994]
[1720884386309,2.31941372,3167.6,3167.3,2.75994]
[1720884386513,0.18935013,3167.5,3167.3,2.75994]
[1720884386822,0.18935013,3167.4,3167.3,2.75994]
[1720884388404,2.50876385,3167.4,3167.1,7.41]
[1720884388712,2.50876385,3167.3,3167.1,7.41]
[1720884388918,2.50876385,3167.2,3167.1,7.41]
[1720884389516,2.50845268,3167.2,3167.1,7.41]
[1720884391734,0.18958907,3167.2,3167.1,7.41]
[1720884391887,2.50845268,3167.2,3167.1,7.41]
[1720884392288,2.50845268,3167.2,3166.8,2.4364]
[1720884392489,0.18958907,3167.1,3166.9,0.32354]
[1720884392710,0.18958907,3167.0,3166.9,0.32354]
[1720884392890,0.18954908,3167.0,3166.9,0.32354]
[1720884393099,0.799,3167.7,3166.9,0.32354]
[1720884393303,2.31897904,3167.2,3166.9,0.32354]
[1720884393619,0.18954979,3167.1,3167.0,0.275994]
[1720884395924,0.18956647,3167.1,3167.0,0.275994]
[1720884396125,0.799,3167.7,3167.0,0.275994]
[1720884396329,2.31946321,3167.2,3166.8,2.4364]
[1720884396514,0.18954916,3167.1,3166.8,2.4364]
[1720884396712,0.18954916,3167.0,3166.8,2.4364]
[1720884396914,0.18954916,3166.9,3166.8,2.4364]
[1720884397112,0.18954916,3166.9,3166.8,2.76044407]
[1720884397319,0.18954916,3167.1,3166.8,2.76044407]
[1720884399503,0.18955112,3167.0,3166.8,2.76044407]
[1720884399698,0.18955112,3166.9,3166.8,2.76044407]
[1720884400400,0.18955112,3167.0,3166.8,2.76044407]
[1720884400602,0.18955112,3166.9,3166.8,2.4364]
[1720884402805,3.28777528,3167.8,3166.8,2.4364]
[1720884403137,2.31951281,3167.2,3166.9,0.799]
[1720884403337,0.18950127,3167.1,3166.9,0.799]
[1720884403514,0.18950127,3167.0,3166.9,0.799]
[1720884403714,2.31953946,3167.2,3166.9,0.799]
[1720884403715,0.18950127,3167.1,3166.9,0.799]
[1720884403914,0.18950127,3167.0,3166.9,0.799]
[1720884404110,0.18950127,3167.0,3166.9,1.12254]
[1720884404855,0.18950127,3167.1,3166.8,2.4364]
[1720884405023,0.18950127,3167.0,3166.8,2.4364]
[1720884406005,2.3504,3167.5,3166.8,2.4364]
[1720884406201,2.3195772,3167.1,3166.8,2.4364]
[1720884406405,0.18958562,3167.0,3166.8,2.4364]
[1720884407138,0.18958701,3166.9,3166.8,2.4364]
[1720884407318,0.18958701,3166.9,3166.8,2.76044407]
[1720884409843,0.18958761,3166.9,3166.8,2.76044407]
[1720884413024,2.3504,3167.5,3166.8,2.76044407]
[1720884413225,2.32182147,3166.9,3166.8,2.76044407]
[1720884413423,0.18956779,3166.9,3166.8,2.4364]
[1720884413738,2.32195314,3167.0,3166.8,2.4364]
[1720884414321,2.32195314,3166.9,3166.8,2.4364]
[1720884415847,2.32195314,3166.9,3166.6,2.50214068]
[1720884416051,2.32195314,3166.7,3166.6,2.50214068]
[1720884416454,2.32272595,3166.7,3166.6,0.00504068]
[1720884416640,2.74372003,3166.8,3166.6,0.00504068]
[1720884416931,2.74372003,3166.7,3166.6,0.00504068]
[1720884417749,2.74372003,3166.8,3166.6,0.00504068]
[1720884417941,3.01809203,3166.8,3166.6,0.00504068]
[1720884418950,2.74372003,3166.8,3166.6,0.00504068]
[1720884420583,3.2645,3167.2,3166.6,0.00504068]
[1720884420584,2.74372003,3166.7,3166.6,0.00504068]
[1720884420934,3.28777528,3166.9,3166.6,0.00504068]
[1720884421837,2.74313603,3166.7,3166.6,0.00504068]
[1720884422039,4.08677528,3167.0,3166.6,0.00504068]
[1720884422362,2.74311794,3166.7,3166.6,0.00504068]
[1720884424068,2.74311794,3166.8,3166.6,0.00504068]
[1720884425256,3.15179547,3166.9,3166.6,0.00504068]
[1720884425845,0.40867753,3166.9,3166.6,0.00504068]
[1720884426044,2.74169282,3166.9,3166.6,0.00504068]
[1720884427042,2.74169282,3167.0,3166.7,2.3409]
[1720884427978,2.74169282,3166.9,3166.7,2.3409]
[1720884428192,2.74169282,3167.0,3166.7,2.3409]
[1720884428469,2.74169282,3166.9,3166.7,2.3409]
[1720884428877,2.74141475,3166.9,3166.7,2.3409]
[1720884429938,2.74141475,3166.9,3166.6,0.00504068]
[1720884430135,2.74141475,3166.8,3166.6,0.00504068]
[1720884430797,2.74141475,3166.9,3166.6,0.00504068]
[1720884430942,4.08677528,3167.2,3166.6,0.00504068]
[1720884430943,3.01555623,3166.8,3166.6,0.00504068]
[1720884431142,2.74141475,3166.8,3166.6,0.00504068]
[1720884432213,2.74185939,3166.8,3166.6,0.00504068]
[1720884432361,3.28777528,3166.9,3166.6,0.00504068]
[1720884432702,2.74175263,3166.7,3166.6,0.00504068]
[1720884434093,2.74067263,3166.7,3166.6,0.00504068]
[1720884434648,0.66308986,3166.8,3166.6,0.00504068]
[1720884435047,0.06882335,3166.7,3166.6,0.00504068]
[1720884435294,3.35659863,3166.7,3166.6,0.00504068]
[1720884435443,3.83846748,3166.7,3166.6,0.00504068]
[1720884436679,4.63746748,3166.7,3166.6,0.00504068]
[1720884437375,1.3496922,3166.7,3166.6,0.00504068]